Cogmind - Beta 10.1 @@@ ROGUE MODE // 2020.10.15 @ 16:04:20 Player: slowdive Result: Destroyed by as-40176 with Assembled Blade Performance ------------- Evolutions (1) 500 Regions Visited (3) 600 Robots Destroyed (19) 95 Value Destroyed (530) 530 Prototype IDs (3) 60 Alien Tech Used (0) 0 Bonus (0) 0 TOTAL SCORE: 1785 Bonus ------- None Cogmind --------- Core Integrity 0/400 Matter 300/300 Energy 100/100 System Corruption 0% Temperature Cool (0) Movement Core (550) Ox10 Location -9/Mines Parts ------- > --- POWER (1) -------- (None) > --- PROPULSION (3) --- (None) > --- UTILITY (3) ------ High-capacity Storage Unit > --- WEAPON (2) ------- (None) > --- INVENTORY (12) --- Light Deuterium Engine Light Treads Heat Sink Improved Sensor Array Improved Targeting Computer Propulsion Shielding Peak State ------------ > --- POWER ------------ Ion Engine > --- PROPULSION ------- Light Treads Light Treads Improved Treads > --- UTILITY ---------- High-capacity Storage Unit Targeting Computer Thief Drone Bay > --- WEAPON ----------- Small Laser Light EM Pulse Cannon > --- INVENTORY -------- Ion Engine Light Treads Aluminum Leg Aluminum Leg Aluminum Leg Aluminum Leg Heat Sink Improved Sensor Array Terrain Scanner Improved Targeting Computer Medium Armor Plating [Rating: 18] Favorites ----------- Power Ion Engine Engine Ion Engine Propulsion Light Treads Treads Light Treads Leg Aluminum Leg Utility High-capacity Storage Unit Device Improved Sensor Array Storage High-capacity Storage Unit Processor Targeting Computer Protection Medium Armor Plating Weapon Assault Rifle Energy Gun Medium Laser Energy Cannon Light EM Pulse Cannon Ballistic Gun Assault Rifle Build | -11 -10 -9 -9 ------- Run | Scr Mat Mat Min Slots Evolved 2 | . . 2 . Power . | . . . . Propulsion 1 | . . 1 . Utility 1 | . . 1 . Weapon . | . . . . Parts Attached 34 | 9 8 8 9 Power 5 | 1 2 1 1 Engine 5 | 1 2 1 1 Core . | . . . . Reactor . | . . . . Propulsion 13 | 5 1 2 5 Treads 7 | 3 1 2 1 Leg 6 | 2 . . 4 Wheel . | . . . . Hover . | . . . . Flight . | . . . . Utility 9 | 1 3 3 2 Device 4 | . 2 1 1 Storage 2 | 1 1 . . Processor 1 | . . 1 . Hackware . | . . . . Protection 2 | . . 1 1 Artifact . | . . . . Weapon 7 | 2 2 2 1 Energy Gun 4 | 1 1 1 1 Energy Cannon 1 | . . 1 . Ballistic Gun 2 | 1 1 . . Ballistic Cannon . | . . . . Launcher . | . . . . Special Weapon . | . . . . Impact Weapon . | . . . . Slashing Weapon . | . . . . Piercing Weapon . | . . . . Special Melee Weapon . | . . . . Unidentified Prototypes 1 | . . . 1 Parts Lost 19 | . 4 . 15 Power 3 | . 1 . 2 Propulsion 8 | . 1 . 7 Utility 3 | . . . 3 Weapon 5 | . 2 . 3 Highest Loss Streak 14 | . 4 . 14 Average Slot Usage (%) 91 | . 94 87 90 Engine 12 | . 14 11 10 Treads 28 | . 28 32 27 Device 9 | . 9 6 10 Storage 12 | . 14 11 11 Processor 3 | . . 5 9 Protection 1 | . . 8 . Energy Gun 7 | . 5 10 7 Energy Cannon 3 | . . 1 9 Ballistic Gun 10 | . 20 . . Naked Turns . | . . . . Heaviest Build 48 | 13 45 47 48 Greatest Support 63 | 40 40 63 63 Greatest Overweight (x) 4 | . 1 . 4 Average Overweight (x) . | . . . . Largest Inventory Capacity 14 | 6 14 12 12 Average Capacity 10 | 5 10 12 12 Most Carried 12 | 6 12 11 12 Average Carried 8 | 3 7 9 9 Final Capacity 12 | 6 12 12 12 Final Carried 11 | 6 9 11 6 Class Distribution -------------------- 87% | Mutant 12% | Scavenger-Mutant Dominant Class ---------------- Mutant | -10/Materials Mutant | -9/Materials Mutant | -9/Mines Resources | -11 -10 -9 -9 ----------- Run | Scr Mat Mat Min Matter Collected 700 | 198 298 86 118 Remotely . | . . . . Salvage Created 773 | . 524 180 69 Parts 32 | . 25 7 . Haulers Intercepted 1 | . 1 . . Recyclers Shooed 2 | . 1 1 . Parts Field Recycled . | . . . . Retrieved Matter . | . . . . Parts Self-Destructed . | . . . . Prevented . | . . . . Kills | -11 -10 -9 -9 ------- Run | Scr Mat Mat Min Combat Hostiles Destroyed 17 | . 12 4 1 Guns 16 | . 12 4 . Cannons 1 | . . . 1 Classes Destroyed 4 | . 4 . . Hauler 1 | . 1 . . Watcher 1 | . 1 . . Swarmer 3 | . 3 . . Grunt 13 | . 9 4 . Best Kill Streak 3 | . 3 3 1 Combat Bots Only 3 | . 2 3 1 Max Kills in Single Turn 1 | . 1 1 1 Gunslinging . | . . . . Exploded . | . . . . Melee . | . . . . Uniques/NPCs Destroyed 1 | . . . 1 YI-UF0 (-9/Mines) Combat | -11 -10 -9 -9 -------- Run | Scr Mat Mat Min Damage Taken 2822 | . 820 231 1771 Core 502 | . 81 22 399 Absorbed by Shields . | . . . . Core Remaining (%) 83 | 100 67 . . Volleys Fired 84 | . 57 26 1 Largest 2 | . 2 1 1 Hottest 70 | . 70 50 56 Shots Fired 130 | . 103 26 1 Gun 129 | . 103 26 . Cannon 1 | . . . 1 Launcher . | . . . . Special . | . . . . Kinetic 87 | . 87 . . Thermal 42 | . 16 26 . Explosive . | . . . . Electromagnetic 1 | . . . 1 Robot Hit Streak 39 | . 28 39 5 Robot Miss Streak 4 | . 4 1 . Penetration Max . | . . . . Secondary Targets 2 | . 2 . . Max Gunslinging Chain 1 | . 1 . . Shots Hit Robots 103 | . 78 24 1 Core Hits 41 | . 30 8 3 Critical Hits . | . . . . Critical Kills . | . . . . Critical Parts Destroyed . | . . . . Melee Attacks . | . . . . Impact . | . . . . Slashing . | . . . . Piercing . | . . . . Sneak Attacks . | . . . . Combat Hostiles . | . . . . Follow-up Attacks . | . . . . Damage Inflicted 1348 | . 999 303 46 Guns 1300 | . 997 303 . Cannons 19 | . . . 19 Explosions . | . . . . Melee . | . . . . Ramming 29 | . 2 . 27 Kinetic 833 | . 833 . . Thermal 467 | . 164 303 . Explosive . | . . . . Electromagnetic 19 | . . . 19 Impact . | . . . . Slashing . | . . . . Piercing . | . . . . Highest Corruption . | . . . . Average Corruption . | . . . . Corruption Purged . | . . . . Overload Shots . | . . . . Overflow Damage . | . . . . Projectiles . | . . . . Explosions . | . . . . Melee . | . . . . Knockbacks . | . . . . Impact . | . . . . Kinetic . | . . . . Secondary . | . . . . Self-Inflicted Damage 4 | . . . 4 Shots . | . . . . Rammed 5 | . 1 . 4 Targets Rammed 8 | . 1 . 7 Kicked 3 | . . . 3 Crushed . | . . . . Highest Temperature 210 | . 75 210 10 Average Temperature 54 | . 17 91 7 Received Heat Transfer 534 | . 408 126 . Siege Activations . | . . . . Robots Corrupted . | . . . . Combat Hostiles . | . . . . Parts Fried . | . . . . Impact Corruptions . | . . . . Robots Melted . | . . . . Combat Hostiles . | . . . . Parts Melted 1 | . . 1 . Heat Transferred 1369 | . 481 888 . Parts Sabotaged . | . . . . Parts Stolen . | . . . . Parts Stripped . | . . . . Power Chain Reactions . | . . . . Missiles Intercepted . | . . . . Alert | -11 -10 -9 -9 ------- Run | Scr Mat Mat Min Peak Influence 173 | . 173 152 58 Initial 58 | . . 34 58 Average 47 | . 55 82 26 Maximum Alert Level . | . . . . Low Security (%) 100 | 100 100 100 100 Level 1 . | . . . . Level 2 . | . . . . Level 3 . | . . . . Level 4 . | . . . . Level 5 . | . . . . High Security . | . . . . Max Security . | . . . . Squads Dispatched 3 | . 1 2 . Investigation 1 | . . 1 . Extermination . | . . . . Reinforcement 2 | . 1 1 . Assault . | . . . . Garrison . | . . . . Intercept . | . . . . Construction Impeded . | . . . . Haulers Reinforced . | . . . . Stealth | -11 -10 -9 -9 --------- Run | Scr Mat Mat Min Distress Signals 5 | . 3 2 . Communications Jammed . | . . . . Distress Signals . | . . . . Times Spotted 56 | . 25 8 23 Peak Tracking Total 9 | . 4 5 9 Tactical Retreats 6 | . 4 . 2 Traps | -11 -10 -9 -9 ------- Run | Scr Mat Mat Min Traps Triggered . | . . . . Indirectly . | . . . . Trap Hack Attempts . | . . . . Triggered . | . . . . Disarmed . | . . . . Reprogrammed . | . . . . Reused . | . . . . Traps Extracted . | . . . . Installed . | . . . . Triggered . | . . . . Machines | -11 -10 -9 -9 ---------- Run | Scr Mat Mat Min Machines Disabled . | . . . . Max in Single Turn . | . . . . Machines Sabotaged . | . . . . Garrisons Compromised . | . . . . Overloaded Fab Kills . | . . . . Fab Network Shutdowns . | . . . . Hacking | -11 -10 -9 -9 --------- Run | Scr Mat Mat Min Machines Accessed 6 | . 4 1 1 Terminals 4 | . 4 . . Fabricators . | . . . . Repair Stations 1 | . . 1 . Recycling Units . | . . . . Scanalyzers . | . . . . Garrison Access . | . . . . Total Hacks 22 | . 12 9 1 Successful 13 | . 5 7 1 Failed 9 | . 7 2 . Catastrophic . | . . . . Database Lockouts . | . . . . Manual 1 | . 1 . . Terminals 12 | . 12 . . Fabricators . | . . . . Repair Stations 9 | . . 9 . Recycling Units . | . . . . Scanalyzers . | . . . . Garrison Access . | . . . . Terminal Hacks 6 | . 5 . 1 Record 1 | . 1 . . Prototype ID Bank 1 | . 1 . . Open Door 1 | . . . 1 Branch Access Points 1 | . 1 . . Terminal Index 1 | . 1 . . Dispatch Records 1 | . 1 . . Fabricator Hacks . | . . . . Repair Station Hacks 7 | . . 7 . Scan Component 4 | . . 4 . Repair 3 | . . 3 . Recycling Unit Hacks . | . . . . Scanalyzer . | . . . . Garrison Access Hacks . | . . . . Unauthorized Hacks . | . . . . Terminals . | . . . . Fabricators . | . . . . Repair Stations . | . . . . Recycling Units . | . . . . Scanalyzers . | . . . . Garrison Access . | . . . . Data Cores Recovered . | . . . . Used . | . . . . Hacking Detections 5 | . 4 1 . Full Trace Events 3 | . 2 1 . Feedback Events . | . . . . Feedback Blocked . | . . . . Robot Schematics Acquired . | . . . . Robots Built . | . . . . Matter . | . . . . Time . | . . . . Total Robot Build Rating . | . . . . Part Schematics Acquired . | . . . . Parts Built . | . . . . Matter . | . . . . Time . | . . . . Total Part Build Rating . | . . . . Parts Repaired 3 | . . 3 . Time 78 | . . 78 . Parts Recycled . | . . . . Recycled Matter . | . . . . Retrieved Matter . | . . . . Retrieved Components . | . . . . Parts Scanalyzed . | . . . . Part Schematics Acquired . | . . . . Parts Damaged . | . . . . Bothacking | -11 -10 -9 -9 ------------ Run | Scr Mat Mat Min Used RIF Installer . | . . . . Robots Hacked . | . . . . Non-combat . | . . . . Combat . | . . . . Robot Hacks Applied . | . . . . Relay Couplers Released . | . . . . Robots Rewired . | . . . . Allies Hacked . | . . . . Hacks Repelled . | . . . . Allies | -11 -10 -9 -9 -------- Run | Scr Mat Mat Min Total Allies 3 | . . . 3 Largest Group 3 | . . . 3 Highest-Rated Group 40 | . . . 40 Highest-Rated Ally 16 | . . . 16 Total Orders . | . . . . Ally Attacks 27 | . . . 27 Total Damage 219 | . . . 219 Kills 1 | . . . 1 Allies Corrupted . | . . . . Allies Melted . | . . . . Intel | -11 -10 -9 -9 ------- Run | Scr Mat Mat Min Robot Analysis Total . | . . . . Derelict Logs Recovered 1 | . . . 1 Drone Launches 3 | . . . 3 Drone Recoveries 1 | . . . 1 Exploration | -11 -10 -9 -9 ------------- Run | Scr Mat Mat Min Turns Passed 2131 | 158 1007 368 598 Spaces Moved 1036 | 92 473 135 336 Core 2 | 2 . . . Treads 983 | 75 473 135 300 Legs 51 | 15 . . 36 Wheels . | . . . . Hover . | . . . . Flight . | . . . . Fastest Speed 50 | 50 160 160 150 Average Speed 165 | 151 170 160 164 Slowest Speed 240 | 160 180 160 240 Overloaded Moves . | . . . . Propulsion Burnouts . | . . . . Robots Hopped . | . . . . Cave-ins Triggered . | . . . . Exploration Rate (%) 39 | 5 68 14 71 Regions Visited 3 Branch Regions 1 Pre-discovered Areas . | . . . . Known Exits Taken . | . . . . Unknown Exits Taken 3 | 1 1 1 . Scrap Searched 1 | . . . 1 Spaces Dug . | . . . . Terrain Destroyed . | . . . . Melee . | . . . . Projectile . | . . . . AOE . | . . . . Terrain Rammed . | . . . . Walls Destroyed . | . . . . Machines Disabled . | . . . . Actions | -11 -10 -9 -9 --------- Run | Scr Mat Mat Min Total 1307 | 109 570 259 369 Wait 111 | . 15 83 13 Move 1033 | 91 472 134 336 Hop . | . . . . Pick Up 21 | 5 10 5 1 Fast Attach 15 | 8 2 4 1 Attach 13 | 1 4 1 7 Detach 6 | 3 1 1 1 Swap 6 | . 2 3 1 Drop 10 | 1 6 2 1 Fire 84 | . 57 26 1 Melee . | . . . . Ram 2 | . . . 2 Kick 5 | . . . 5 Crush 1 | . 1 . . Escape Stasis . | . . . . Rewire . | . . . . Trap . | . . . . Miscellaneous . | . . . . Route ------- -11/Scrapyard -10/Materials (discovered 2 exits: *Mat / Min) -9/Materials -9/Mines (discovered 2 exits: [*Mat x2]) History --------- Turn | Location | Event 28 | -11/Scrapyard | Discovered new exit (range 15) 159 | -11/Scrapyard | Entered Materials 234 | -10/Materials | Identified exit to Mines 314 | -10/Materials | Build established: Mutant 1115 | -10/Materials | Lost 4 parts (1p1n2w) 1124 | -10/Materials | Discovered new exit (range 9) 1166 | -10/Materials | Entered another Materials area 1166 | -9/Materials | Evolved 2 slots: Propulsion x1, Utility x1 1226 | -9/Materials | Repaired Lgt. Treads 1253 | -9/Materials | Repaired Ion Engine 1279 | -9/Materials | Repaired Med. Laser 1508 | -9/Materials | Discovered new exit (range 15) 1534 | -9/Materials | Entered Mines 1541 | -9/Mines | Assisted by bots powering up and referring to "LRC-V3" 1642 | -9/Mines | Discovered new exit (range 16) 1685 | -9/Mines | Destroyed YI-UF0 1708 | -9/Mines | Learned 2 Materials zone layouts 1715 | -9/Mines | Found the Drone Emporium 1729 | -9/Mines | Found Prototype Device 1729 | -9/Mines | Identified Thief Drone Bay 1873 | -9/Mines | Discovered new exit (range 8) 2002 | -9/Mines | Assembled infested the area 2007 | -9/Mines | Assisted by a Guerilla fighting off Assembled 2106 | -9/Mines | Core integrity fell below 50% 2119 | -9/Mines | Core integrity fell below 20% 2132 | -9/Mines | Destroyed by as-40176 with Assembled Blade Last Messages --------------- 02066_ U-05 Engineer lays Concrete. 02067_ The unstable cave ceiling collapses. 02068_ U-05 Engineer lays Concrete. 02069_ Acquired 9 matter. 02069_ U-05 Engineer lays Concrete. 02072_ as-81643 sneak attacks. 02072_ U-05 Engineer system corrupted by crushing effect. 02072_ U-05 Engineer knocked back. 02073_ U-05 Engineer system terminally corrupted. 02076_ The unstable cave ceiling collapses. 02076_ Thief Drone destroyed. 02083_ The unstable cave ceiling collapses. 02085_ Acquired 9 matter. 02088_ Aluminum Leg destroyed. 02101_ Med. Armor Plating destroyed. 02104_ Thief Drone Bay destroyed. 02112_ Ion Engine destroyed. 02120_ Kicked as-31299 out of the way. 02121_ Aluminum Leg destroyed. 02122_ Slammed into as-31299. Map ----- +----------------------------------------------------+ | ????????????????????????????????? | | ????????????????????????????????? | | ????????????????????????????????? | | ????????????????????????????????? | | ????????????????????????????????? | | ????????????????????????????????? | | ????????????????????????????????? | | ????????????????????????????????? | | ?####???????????????????????????? | | ## #####???????????????????????? | | # ##??????????????????????? | | # ################???????? | | ] % %* = #???????? | | # ############### #???????? | | # ##??????????### #???????? | | #?????????## #???????? | | #####????????## ###?????? | | ##????????????# #?????? | | #?????????????# #?????? | | ##?????????????## " ### #?????? | | #???????????????####??# #?????? | | ##?????????????????????# #?????? | | ##??????????????????????# #?????? | | #???????????????????????#a#?????? | | #???????????????????????#a#?????? | | #???????????????????????#@#?????? | | #?????????????????????? a#?????? | | #?????????????????????### #?????? | | #???????????????????????# #?????? | | #???????????????????????# #?????? | | ???????????????????????? #?????? | | ???????????????????????? ?????? | | ???????????????????????? ?????? | | ???????????????????????? ?????? | | ???????????????????????? ?????? | | ???????????????????????? ?????? | | ???????????????????????? #?????? | | ????????????????????????##??????? | | ????????????????????????????????? | | ????????????????????????????????? | | ????????????????????????????????? | | ????????????????????????????????? | | ????????????????????????????????? | | | | | | | | | | | | | | | +----------------------------------------------------+ Best States ------------- Heat Dissipation 28 Energy Generation 10 Energy Capacity 250 Matter Stores 300 Matter Capacity 300 Sight Range 16 Robot Scan Range 13 Terrain Scan Range 14 Terrain Scan Density 10 Armor Coverage 225 Evasion (%) 40 Targeting Accuracy 5 Recoil Reduction 3 Item Schematics ----------------- None Robot Schematics ------------------ None Fabricated ------------ Nothing Alien Tech Used ----------------- None Achievements -------------- None Challenges ------------ None Game ------ Seed GuidanceMachineBlaster Manual? 0 Play Time 00:26:14 Cumulative 22.0 hours Start 2020.10.15 @ 15:21:31 End 2020.10.15 @ 16:04:20 Sessions 1 Manual Loads 0 Difficulty Rogue Special Mode None Game No. 25 Rogue 25 Adventurer 0 Explorer 0 Win Type - Total 0 Types 0/0/0/0/0/0/0/0/0 Lore% 17 Gallery% 23 Achievement% 17 Wizard Run 0 Options --------- ASCII 0 Keyboard 0 Movement Numpad Keybinds 0 Fullscreen 2 Font 18/SmallcapsGlow Map View 76x50 Tactical HUD 1 Map Filters NONE Filters NONE Steam 1 RUN: cb7778c1-1b5b-460e-ac9e-bf52193d6a55